bitfinex/quotes_BTCUSD_20240701
["timestamp","ask_amount","ask_price","bid_price","bid_amount"]
[1719845129731,1.6275853,62901.0,62878.0,0.48516575]
[1719845129995,2.24614003,62901.0,62878.0,0.48516575]
[1719845130148,0.5658,62891.0,62878.0,0.48516575]
[1719845130369,1.79532964,62891.0,62878.0,0.48516575]
[1719845132299,1.37232964,62891.0,62878.0,0.48516575]
[1719845132487,1.37232964,62891.0,62883.0,0.07494]
[1719845132488,0.88052964,62891.0,62883.0,0.07494]
[1719845133340,0.89452964,62891.0,62883.0,0.07494]
[1719845133507,0.90852964,62891.0,62883.0,0.07494]
[1719845133944,0.89452964,62891.0,62883.0,0.07494]
[1719845134379,0.03519066,62891.0,62883.0,0.07812045]
[1719845134564,0.03519066,62891.0,62883.0,0.07494]
[1719845134727,0.02119066,62891.0,62883.0,0.07812033]
[1719845135041,0.02119066,62891.0,62883.0,0.07494]
[1719845135042,0.00719066,62891.0,62883.0,0.07494]
[1719845135486,0.246,62900.0,62883.0,0.07494]
[1719845135670,0.00711785,62891.0,62883.0,0.233771]
[1719845135908,0.40833898,62900.0,62883.0,0.233771]
[1719845135909,0.16233898,62900.0,62891.0,0.0604]
[1719845136104,0.20224593,62900.0,62891.0,0.0604]
[1719845136228,0.16233898,62900.0,62891.0,0.0604]
[1719845137495,0.18833898,62900.0,62891.0,0.0604]
[1719845137936,0.02,62898.0,62891.0,0.0604]
[1719845138137,0.02,62898.0,62890.0,0.009229]
[1719845138138,0.02,62891.0,62890.0,0.009229]
[1719845138414,0.18233898,62891.0,62890.0,0.009229]
[1719845139679,0.74803898,62891.0,62890.0,0.009229]
[1719845139853,0.84803898,62891.0,62890.0,0.009229]
[1719845140220,0.64803898,62891.0,62890.0,0.009229]
[1719845140416,0.97796688,62891.0,62890.0,0.009229]
[1719845140828,0.77796688,62891.0,62890.0,0.009229]
[1719845141019,0.97796688,62891.0,62890.0,0.009229]
[1719845141255,0.57796688,62891.0,62890.0,0.009229]
[1719845141678,0.77796688,62891.0,62890.0,0.009229]
[1719845141870,0.79196688,62891.0,62890.0,0.009229]
[1719845142309,0.59196688,62891.0,62890.0,0.009229]
[1719845142710,0.42626688,62891.0,62890.0,0.009229]
[1719845143121,0.65226688,62891.0,62890.0,0.009229]
[1719845143520,0.61826688,62891.0,62890.0,0.009229]
[1719845143739,0.48833898,62891.0,62890.0,0.009229]
[1719845144014,0.50999298,62891.0,62890.0,0.009229]
[1719845144455,0.49599298,62891.0,62890.0,0.009229]
[1719845144658,0.51599298,62891.0,62890.0,0.009229]
[1719845144844,0.52999298,62891.0,62890.0,0.009229]
[1719845145189,0.65884228,62891.0,62890.0,0.009229]
[1719845145389,0.64484228,62891.0,62890.0,0.009229]
[1719845146241,0.65884228,62891.0,62890.0,0.009229]
[1719845146944,0.86784228,62891.0,62890.0,0.009229]
[1719845147332,0.88184228,62891.0,62890.0,0.009229]
[1719845148135,1.08184228,62891.0,62890.0,0.009229]
[1719845148344,1.09584228,62891.0,62890.0,0.009229]
[1719845149441,1.08184228,62891.0,62890.0,0.009229]
[1719845149774,1.09584228,62891.0,62890.0,0.009229]
[1719845150899,1.09584228,62891.0,62890.0,0.00918342]
[1719845151108,1.06584228,62891.0,62890.0,0.00918342]
[1719845152406,1.41274228,62891.0,62890.0,0.00918342]
[1719845153086,1.58034228,62891.0,62890.0,0.00918342]
[1719845153346,0.62,62889.0,62886.0,0.00924]
[1719845153518,0.98468202,62889.0,62886.0,0.00924]
[1719845153694,0.99228958,62889.0,62886.0,0.00924]
[1719845154905,1.05433154,62889.0,62886.0,0.00924]
[1719845156083,1.06833154,62889.0,62886.0,0.00924]
[1719845156285,1.23066525,62889.0,62886.0,0.00924]
[1719845156464,1.40862329,62889.0,62886.0,0.00924]
[1719845156837,1.40831535,62889.0,62886.0,0.00924]
[1719845157044,1.20831535,62889.0,62886.0,0.00924]
[1719845157640,1.40831535,62889.0,62886.0,0.00924]
[1719845158823,1.20831535,62889.0,62886.0,0.00924]
[1719845159250,1.40831535,62889.0,62886.0,0.00924]
[1719845160348,1.20831535,62889.0,62886.0,0.00924]
[1719845160924,1.00862329,62889.0,62886.0,0.00924]
[1719845161123,1.20831535,62889.0,62886.0,0.00924]
[1719845161322,1.12738164,62889.0,62886.0,0.00924]
[1719845161947,1.24621578,62889.0,62886.0,0.00924]
[1719845162636,1.32738164,62889.0,62886.0,0.00924]
[1719845162774,1.12738164,62889.0,62886.0,0.00924]
[1719845163193,1.04598164,62889.0,62886.0,0.00924]
[1719845163394,1.17699117,62889.0,62886.0,0.00924]
[1719845163919,0.52394654,62889.0,62886.0,0.00924]
[1719845164138,0.52394654,62889.0,62888.0,0.142424]
[1719845164350,0.54394654,62889.0,62888.0,0.000924]
[1719845164538,0.66302009,62889.0,62888.0,0.000924]
[1719845164862,0.99616912,62889.0,62888.0,0.000924]
[1719845165169,1.19616912,62889.0,62888.0,0.000924]
[1719845165484,1.33899761,62889.0,62888.0,0.000924]
[1719845165600,1.16199761,62889.0,62888.0,0.000924]
[1719845166003,0.8193798,62889.0,62888.0,0.000924]
[1719845166204,0.50994654,62889.0,62888.0,0.000924]
[1719845166981,0.18394654,62889.0,62888.0,0.000924]
[1719845167177,0.3030852,62889.0,62888.0,0.000924]
[1719845167467,0.3230852,62889.0,62888.0,0.000924]
[1719845167610,0.28210269,62889.0,62888.0,0.000924]
[1719845167785,0.29605795,62889.0,62888.0,0.000924]
[1719845168556,0.1839018,62889.0,62888.0,0.000924]
[1719845168949,0.2039018,62889.0,62888.0,0.000924]
[1719845169096,0.1839018,62889.0,62888.0,0.000924]
[1719845169977,0.1979018,62889.0,62888.0,0.000924]
[1719845170183,0.1839018,62889.0,62888.0,0.000924]
[1719845170612,0.1979018,62889.0,62888.0,0.000924]
[1719845171009,0.1839018,62889.0,62888.0,0.000924]
[1719845171235,0.1979018,62889.0,62888.0,0.000924]
[1719845171656,0.35491627,62889.0,62888.0,0.000924]
[1719845171911,0.35460818,62889.0,62888.0,0.000924]
[1719845172266,0.34065197,62889.0,62888.0,0.000924]
[1719845172466,0.34003954,62889.0,62888.0,0.000924]
[1719845172625,0.21098128,62889.0,62888.0,0.000924]
[1719845173232,0.29605188,62889.0,62888.0,0.000924]
[1719845173438,1.00587065,62889.0,62888.0,0.000924]
[1719845173634,0.9296301,62889.0,62888.0,0.000924]
[1719845173901,0.7296301,62889.0,62888.0,0.000924]
[1719845174390,0.5296301,62889.0,62888.0,0.000924]
[1719845174585,0.6028595,62889.0,62888.0,0.000924]
[1719845174732,0.3888595,62889.0,62888.0,0.000924]
[1719845174947,0.3798595,62889.0,62888.0,0.000924]
[1719845175116,0.5858595,62889.0,62888.0,0.000924]
[1719845175301,0.57729727,62889.0,62888.0,0.000924]
[1719845175547,0.73824016,62889.0,62888.0,0.000924]
[1719845175904,0.85363604,62889.0,62888.0,0.000924]
[1719845176204,0.5575093,62889.0,62888.0,0.000924]
[1719845176411,0.5435093,62889.0,62888.0,0.000924]
[1719845176614,0.54990174,62889.0,62888.0,0.000924]
[1719845177095,0.48737372,62889.0,62888.0,0.000924]
[1719845178646,0.50137372,62889.0,62888.0,0.000924]
[1719845178846,0.51537372,62889.0,62888.0,0.000924]
[1719845179025,0.50137372,62889.0,62888.0,0.000924]
[1719845179387,0.48737372,62889.0,62888.0,0.000924]
[1719845179635,0.50137372,62889.0,62888.0,0.000924]
[1719845180532,0.51537372,62889.0,62888.0,0.000924]
[1719845180976,0.254,62889.0,62888.0,0.000924]
[1719845181182,0.15705965,62889.0,62888.0,0.000924]
[1719845181377,0.014,62889.0,62888.0,0.000924]
[1719845181636,0.028,62889.0,62888.0,0.000924]
[1719845181877,0.0130781,62889.0,62888.0,0.000924]
[1719845182295,0.0270781,62889.0,62888.0,0.000924]
[1719845182498,0.17014492,62889.0,62888.0,0.000924]
[1719845182659,0.0270781,62889.0,62888.0,0.000924]
[1719845182853,0.17014492,62889.0,62888.0,0.000924]
[1719845183480,0.0270781,62889.0,62888.0,0.000924]
[1719845185085,0.17024431,62889.0,62888.0,0.000924]
[1719845185529,0.17023407,62889.0,62888.0,0.000924]
[1719845185943,0.0270781,62889.0,62888.0,0.000924]
[1719845189250,0.24442962,62889.0,62888.0,0.000924]
[1719845189522,0.65147689,62889.0,62888.0,0.000924]
[1719845189677,0.63147689,62889.0,62888.0,0.000924]
[1719845189872,0.47042962,62889.0,62888.0,0.000924]
[1719845191102,0.2530781,62889.0,62888.0,0.142324]
[1719845191307,0.0270781,62889.0,62888.0,0.142324]
[1719845191929,0.02677112,62889.0,62888.0,0.142324]
[1719845193035,0.16991281,62889.0,62888.0,0.142324]
[1719845193410,0.02677112,62889.0,62888.0,0.142324]
[1719845193656,0.16988854,62889.0,62888.0,0.142324]
[1719845193997,0.02677112,62889.0,62888.0,0.142324]
[1719845194393,0.16988679,62889.0,62888.0,0.142324]
[1719845195031,0.02677112,62889.0,62888.0,0.142324]
[1719845196428,0.14311567,62892.0,62888.0,0.142324]
[1719845196629,0.19286454,62892.0,62888.0,0.142324]
[1719845196833,0.023,62889.0,62888.0,0.142324]
[1719845197621,0.011,62889.0,62888.0,0.142324]
[1719845198447,0.15707611,62892.0,62888.0,0.142324]
[1719845198873,0.17107611,62892.0,62888.0,0.142324]
[1719845199939,0.15707611,62892.0,62888.0,0.142324]
[1719845200353,0.012,62889.0,62888.0,0.142324]
[1719845200568,0.1312339,62889.0,62888.0,0.142324]
[1719845200763,0.012,62889.0,62888.0,0.142324]
[1719845201582,0.012,62889.0,62888.0,0.162324]
[1719845201945,0.01169213,62889.0,62888.0,0.162324]
[1719845202152,0.02269213,62889.0,62888.0,0.162324]
[1719845202576,0.02269213,62889.0,62888.0,0.63966894]
[1719845202778,0.02269213,62889.0,62888.0,0.95769394]
[1719845203538,0.01169213,62889.0,62888.0,0.95769394]
[1719845203740,0.00084,62900.0,62897.0,0.02]
[1719845203941,0.00084,62900.0,62893.0,0.159]
[1719845203942,0.00084,62900.0,62898.0,0.1428]
[1719845206590,0.01184,62900.0,62898.0,0.1428]
[1719845206814,0.01884,62900.0,62898.0,0.1428]
[1719845207445,0.02684,62900.0,62898.0,0.1428]
[1719845207649,0.07934304,62899.0,62898.0,0.1428]
[1719845208211,0.19845371,62899.0,62898.0,0.1428]
[1719845208396,0.11911067,62899.0,62898.0,0.1428]
[1719845208599,0.14595067,62900.0,62898.0,0.1428]
[1719845209004,0.13895067,62900.0,62898.0,0.1428]
[1719845209245,0.13895067,62900.0,62894.0,0.00030794]
[1719845209246,0.07934304,62899.0,62894.0,0.00030794]
[1719845209456,0.20445371,62899.0,62894.0,0.00030794]
[1719845209866,0.20444742,62899.0,62894.0,0.00030794]
[1719845210055,0.19844742,62899.0,62894.0,0.00030794]
[1719845210285,0.11910438,62898.0,62894.0,0.00030794]
[1719845210466,0.07934304,62899.0,62889.0,0.00030794]
[1719845210467,0.226,62895.0,62889.0,0.00030794]
[1719845210668,0.1191202,62891.0,62889.0,0.00030794]
[1719845210873,0.14204304,62892.0,62888.0,0.000924]
[1719845210874,0.1191202,62890.0,62888.0,0.000924]
[1719845211048,0.1191202,62889.0,62888.0,0.000924]
[1719845211602,0.16233898,62890.0,62888.0,0.000924]
[1719845211950,0.11913904,62889.0,62888.0,0.000924]
[1719845212767,0.009,62895.0,62888.0,0.000924]
[1719845213036,0.1191432,62889.0,62888.0,0.000924]
[1719845213412,0.12914307,62889.0,62888.0,0.000924]
[1719845213903,0.11914307,62889.0,62888.0,0.000924]
[1719845214106,0.13114307,62889.0,62888.0,0.000924]
[1719845214715,0.012,62889.0,62888.0,0.000924]
[1719845214919,0.47673898,62889.0,62888.0,0.000924]
[1719845215121,0.62581005,62889.0,62888.0,0.000924]
[1719845215567,0.86885277,62889.0,62888.0,0.000924]
[1719845215940,0.69600963,62889.0,62888.0,0.000924]
[1719845216344,0.70600963,62889.0,62888.0,0.000924]
[1719845216742,0.69600963,62889.0,62888.0,0.000924]
[1719845216954,0.64781005,62889.0,62888.0,0.000924]
[1719845217145,0.66181005,62889.0,62888.0,0.000924]
[1719845217307,0.63081005,62889.0,62888.0,0.000924]
[1719845217516,0.69911416,62889.0,62888.0,0.000924]
[1719845217723,0.51144309,62889.0,62888.0,0.000924]
[1719845218128,0.23764309,62889.0,62888.0,0.000924]
[1719845218441,0.22464309,62889.0,62888.0,0.000924]
[1719845218849,0.17633898,62889.0,62888.0,0.000924]
[1719845219048,0.19033898,62889.0,62888.0,0.000924]
[1719845219640,0.17633898,62889.0,62888.0,0.000924]
[1719845219803,0.014,62889.0,62888.0,0.000924]
[1719845220009,0.028,62889.0,62888.0,0.000924]
[1719845220556,0.07934304,62892.0,62888.0,0.000924]
[1719845220716,0.16233898,62891.0,62888.0,0.000924]
[1719845220944,0.028,62889.0,62888.0,0.000924]
[1719845221355,0.014,62889.0,62888.0,0.000924]
[1719845222194,0.17633898,62889.0,62888.0,0.000924]
[1719845222409,0.47903898,62889.0,62888.0,0.000924]
[1719845222838,0.17633898,62889.0,62888.0,0.000924]
[1719845223060,0.014,62889.0,62888.0,0.000924]
[1719845224015,0.028,62889.0,62888.0,0.000924]
[1719845225218,0.028,62889.0,62888.0,0.00123194]
[1719845225219,0.02738486,62889.0,62888.0,0.00123194]
[1719845226516,0.014,62889.0,62888.0,0.00123194]
[1719845226977,0.11917937,62892.0,62890.0,0.00030794]
[1719845229136,0.07934304,62891.0,62890.0,0.00030794]
[1719845230117,0.22684,62900.0,62890.0,0.00030794]
[1719845230322,0.22684,62900.0,62888.0,0.000924]
[1719845230323,0.009,62892.0,62891.0,0.14410794]
[1719845230519,0.019,62892.0,62891.0,0.14410794]
[1719845230685,0.019,62892.0,62891.0,0.16410794]
[1719845230902,0.009,62892.0,62891.0,0.16410794]
[1719845231098,0.009,62892.0,62891.0,0.16383802]
[1719845231303,0.009,62892.0,62891.0,0.32284302]
[1719845231951,0.00084,62899.0,62895.0,0.02]
[1719845232191,0.00084,62899.0,62898.0,0.0817]
[1719845232373,0.00084,62899.0,62898.0,0.16387937]
[1719845232976,0.00084,62899.0,62898.0,0.1407]
[1719845233650,0.00084,62899.0,62898.0,0.1607]
[1719845234060,1e-08,62900.0,62898.0,0.1407]
[1719845234719,1e-08,62900.0,62899.0,0.00317934]
[1719845235097,1e-08,62900.0,62899.0,0.02317934]
[1719845235316,1e-08,62900.0,62899.0,0.00317934]
[1719845235501,1e-08,62900.0,62898.0,0.1407]
[1719845235675,1e-08,62900.0,62895.0,0.1479]
[1719845235897,1e-08,62900.0,62892.0,0.0654]
[1719845235898,0.003,62899.0,62892.0,0.0654]
[1719845236107,1e-08,62900.0,62892.0,0.0654]
[1719845236108,0.07934304,62898.0,62892.0,0.0654]
[1719845236307,0.00200001,62900.0,62892.0,0.0654]
[1719845237100,0.00600001,62900.0,62892.0,0.0654]
[1719845237662,0.00200001,62900.0,62892.0,0.0654]
[1719845237956,1e-08,62900.0,62892.0,0.0654]
[1719845238100,0.01800151,62899.0,62892.0,0.0654]
[1719845238516,0.00300001,62900.0,62892.0,0.0654]
[1719845238711,0.00300001,62900.0,62893.0,0.02]
[1719845238915,0.00300001,62900.0,62892.0,0.06857981]
[1719845238916,1e-08,62900.0,62894.0,0.02317961]
[1719845239336,0.01100001,62900.0,62894.0,0.02317961]
[1719845239759,0.01100001,62900.0,62894.0,0.00317961]
[1719845240070,0.00400001,62900.0,62894.0,0.00317961]
[1719845240262,0.00400001,62900.0,62897.0,0.02]
[1719845240638,0.01700001,62900.0,62898.0,0.0778]
[1719845240858,1e-08,62900.0,62898.0,0.0778]
[1719845241404,0.00800001,62900.0,62898.0,0.0778]
[1719845241569,0.02000001,62900.0,62898.0,0.0778]
[1719845242175,0.00800001,62900.0,62898.0,0.0778]
[1719845242607,0.00800001,62900.0,62898.0,0.07773089]
[1719845242803,0.01500001,62900.0,62898.0,0.07773089]
[1719845243465,0.07934304,62899.0,62895.0,0.158831]
[1719845243669,0.24168202,62899.0,62888.0,0.1769531]
[1719845243857,0.24168202,62899.0,62889.0,0.000924]
[1719845244053,0.16233898,62899.0,62889.0,0.000924]
[1719845244609,0.22815358,62899.0,62889.0,0.000924]
[1719845244827,0.16799905,62899.0,62889.0,0.000924]
[1719845245245,0.17399905,62899.0,62889.0,0.000924]
[1719845245651,0.18099905,62899.0,62889.0,0.000924]
[1719845245855,0.17399905,62899.0,62889.0,0.000924]
[1719845246114,0.19899905,62899.0,62889.0,0.000924]
[1719845246709,0.18699905,62899.0,62889.0,0.000924]
[1719845246902,0.30534304,62898.0,62889.0,0.000924]
[1719845247230,0.02,62897.0,62889.0,0.000924]
[1719845247380,0.30534304,62898.0,62889.0,0.000924]
[1719845247789,0.07934304,62891.0,62889.0,0.000924]
[1719845248183,0.30183898,62897.0,62889.0,0.000924]
[1719845248398,0.10328187,62896.0,62889.0,0.000924]
[1719845248582,0.18233898,62895.0,62889.0,0.000924]
[1719845248771,0.07934304,62891.0,62889.0,0.000924]
[1719845248999,0.0625,62890.0,62889.0,0.000924]
[1719845249199,0.1452,62890.0,62889.0,0.000924]
[1719845249797,0.1665934,62890.0,62889.0,0.000924]
[1719845250024,0.1452,62890.0,62889.0,0.000924]
[1719845250500,0.1582,62890.0,62889.0,0.000924]
[1719845250893,0.0755,62890.0,62889.0,0.000924]
[1719845251121,0.013,62890.0,62889.0,0.000924]
[1719845251750,0.027,62890.0,62889.0,0.000924]
[1719845252890,0.20933898,62890.0,62889.0,0.000924]
[1719845253089,0.28773898,62890.0,62889.0,0.000924]
[1719845253298,0.35433898,62890.0,62889.0,0.000924]
[1719845253664,0.34133898,62890.0,62889.0,0.000924]
[1719845254090,0.35533898,62890.0,62889.0,0.000924]
[1719845254305,0.42538685,62890.0,62889.0,0.000924]
[1719845254502,0.41138685,62890.0,62889.0,0.000924]
[1719845254708,0.39738685,62890.0,62889.0,0.000924]
[1719845255104,0.41138685,62890.0,62889.0,0.000924]
[1719845255482,0.39738685,62890.0,62889.0,0.000924]
[1719845256168,0.42538685,62890.0,62889.0,0.000924]
[1719845256394,0.40538685,62890.0,62889.0,0.000924]
[1719845256596,0.33533898,62890.0,62889.0,0.000924]
[1719845257136,0.32133898,62890.0,62889.0,0.000924]
[1719845257348,0.19033898,62890.0,62889.0,0.000924]
[1719845257521,0.028,62890.0,62889.0,0.000924]
[1719845257916,0.1445,62895.0,62889.0,0.000924]
[1719845258119,0.16233898,62894.0,62889.0,0.000924]
[1719845258317,0.014,62890.0,62889.0,0.000924]
[1719845258939,0.028,62890.0,62889.0,0.000924]
[1719845259222,0.16233898,62894.0,62889.0,0.000924]
[1719845259552,0.028,62890.0,62889.0,0.000924]
[1719845260134,0.014,62890.0,62889.0,0.000924]
[1719845260454,0.16233898,62894.0,62889.0,0.000924]
[1719845260672,0.014,62890.0,62889.0,0.000924]
[1719845261054,0.16233898,62894.0,62889.0,0.000924]
[1719845261504,0.014,62890.0,62889.0,0.000924]
[1719845262006,0.028,62890.0,62889.0,0.000924]
[1719845262760,0.014,62890.0,62889.0,0.000924]
[1719845263015,0.1332236,62894.0,62889.0,0.000924]
[1719845263205,0.028,62894.0,62889.0,0.000924]
[1719845265921,0.17433898,62890.0,62889.0,0.000924]
[1719845266176,0.2695387,62890.0,62889.0,0.000924]
[1719845266360,0.3308387,62890.0,62889.0,0.000924]
[1719845266593,0.3448387,62890.0,62889.0,0.000924]
[1719845266991,0.4123387,62890.0,62889.0,0.000924]
[1719845267457,0.4263387,62890.0,62889.0,0.000924]
[1719845268047,0.4123387,62890.0,62889.0,0.000924]
[1719845268246,0.4263387,62890.0,62889.0,0.000924]
[1719845268624,1.06856716,62890.0,62889.0,0.000924]
[1719845268832,1.08256716,62890.0,62889.0,0.000924]
[1719845268991,0.7633387,62890.0,62889.0,0.000924]
[1719845269351,0.7493387,62890.0,62889.0,0.000924]
[1719845269521,0.7633387,62890.0,62889.0,0.000924]
[1719845269893,0.9633387,62890.0,62889.0,0.000924]
[1719845270124,0.7633387,62890.0,62889.0,0.000924]
[1719845270328,0.9633387,62890.0,62889.0,0.000924]
[1719845271574,0.7493387,62890.0,62889.0,0.000924]
[1719845272650,0.7493387,62890.0,62886.0,0.00924]
[1719845272651,0.02,62887.0,62886.0,0.00634886]
[1719845272778,0.18233898,62887.0,62886.0,0.00634886]
[1719845272980,0.28302504,62887.0,62886.0,0.00634886]
[1719845273385,0.26302504,62887.0,62886.0,0.00634886]
[1719845273584,0.16233898,62887.0,62886.0,0.00634886]
[1719845274286,0.17633898,62887.0,62886.0,0.00634886]
[1719845274511,0.19033898,62887.0,62886.0,0.00634886]
[1719845274890,0.014,62887.0,62886.0,0.00634886]
[1719845276075,0.1,62889.0,62886.0,0.00634886]
[1719845276279,0.11930535,62890.0,62886.0,0.00634886]
[1719845276526,0.0626,62898.0,62886.0,0.00634886]
[1719845276527,0.028,62887.0,62886.0,0.00634886]
[1719845276641,0.014,62887.0,62886.0,0.00634886]
[1719845277042,0.014,62887.0,62886.0,0.08784886]
[1719845277243,0.11930183,62892.0,62886.0,0.08784886]
[1719845277444,0.014,62889.0,62887.0,0.0665]
[1719845277940,0.014,62890.0,62887.0,0.0665]
[1719845280085,0.014,62890.0,62888.0,0.00318011]
[1719845280195,0.014,62890.0,62888.0,0.1024]
[1719845280400,0.014,62890.0,62889.0,0.08757995]
[1719845280604,0.11931021,62895.0,62892.0,0.0819]
[1719845280802,1e-08,62900.0,62893.0,0.0628]
[1719845280803,0.11931021,62896.0,62893.0,0.0628]
[1719845281002,1e-08,62900.0,62893.0,0.0628]
[1719845281003,0.11931021,62897.0,62893.0,0.0628]
[1719845281253,1e-08,62900.0,62896.0,0.02]
[1719845281475,0.09545523,62899.0,62898.0,0.1647]
[1719845281652,0.09545524,62900.0,62898.0,0.241787]
[1719845281828,1e-08,62900.0,62899.0,1.12104327]
[1719845282049,1e-08,62900.0,62899.0,1.31786398]
[1719845282233,1e-08,62900.0,62899.0,1.43583398]
[1719845282439,1e-08,62900.0,62899.0,1.63583398]
[1719845282659,1e-08,62900.0,62899.0,1.43583398]
[1719845283177,1e-08,62900.0,62899.0,1.11786398]
[1719845284710,0.00100001,62900.0,62899.0,1.11786398]
[1719845285286,0.00100001,62900.0,62899.0,0.79989398]
[1719845285485,0.00100001,62900.0,62899.0,0.1606]
[1719845285486,1e-08,62900.0,62899.0,0.1606]
[1719845285689,0.00100001,62900.0,62899.0,0.1606]
[1719845285851,0.00100001,62900.0,62899.0,0.319585]
[1719845286051,0.00200001,62900.0,62899.0,0.639555]
[1719845286347,0.00100001,62900.0,62899.0,1.11986398]
[1719845287393,1e-08,62900.0,62899.0,1.11786398]
[1719845287788,1e-08,62900.0,62899.0,1.11986398]
[1719845288815,1e-08,62900.0,62899.0,1.11786398]
[1719845289048,0.00200001,62900.0,62899.0,1.11986398]
[1719845289928,0.00200001,62900.0,62899.0,1.43783398]
[1719845290075,0.00200001,62900.0,62899.0,1.63783398]
[1719845290284,0.00200001,62900.0,62899.0,1.86383398]
[1719845290481,0.09539113,62908.0,62907.0,0.520364]
[1719845290695,0.09539113,62909.0,62908.0,1.01481]
[1719845290843,0.11923892,62913.0,62912.0,0.337904]
[1719845291061,0.11923892,62914.0,62913.0,0.814747]
[1719845291267,0.11923892,62914.0,62913.0,0.97708598]
[1719845291921,0.00084,62929.0,62922.0,0.02]
[1719845292333,0.00084,62929.0,62924.0,0.1681]
[1719845292334,0.16084555,62926.0,62924.0,0.1681]
[1719845292554,0.00084,62929.0,62928.0,0.02]
[1719845292996,0.01405676,62929.0,62928.0,0.34091985]
[1719845293520,0.01405676,62929.0,62928.0,0.65874285]
[1719845293862,0.01405676,62929.0,62928.0,0.34091985]
[1719845294415,0.15690159,62929.0,62928.0,0.34091985]
[1719845294840,0.15690159,62929.0,62928.0,0.32091985]
[1719845295046,0.15690072,62929.0,62928.0,0.34091985]
[1719845295450,0.15686514,62929.0,62928.0,0.34091985]
[1719845295656,0.15686514,62929.0,62928.0,0.34391985]
[1719845295657,0.00084,62929.0,62928.0,0.34391985]
[1719845296401,0.00084,62929.0,62928.0,0.34091985]
[1719845296610,0.00084,62929.0,62928.0,0.34191985]
[1719845297059,0.00084,62929.0,62928.0,0.32191985]
[1719845297268,0.00084,62929.0,62928.0,0.16300885]
[1719845297476,0.00084,62929.0,62928.0,0.34191985]
[1719845297899,0.00084,62929.0,62928.0,0.18308885]
[1719845298335,0.00084,62929.0,62928.0,0.50091185]
[1719845298545,0.00084,62929.0,62928.0,0.49991185]
[1719845298766,0.00084,62929.0,62928.0,0.18208885]
[1719845298971,0.00084,62929.0,62928.0,0.18508885]
[1719845299625,0.00084,62929.0,62928.0,0.18208885]
[1719845299812,0.00084,62929.0,62928.0,0.18808885]
[1719845300337,0.00084,62929.0,62928.0,0.18608885]
[1719845300538,0.00084,62929.0,62928.0,0.18908885]
[1719845301920,0.00084,62929.0,62928.0,0.03017785]
[1719845302127,0.00084,62929.0,62928.0,0.01017785]
[1719845302332,0.00084,62929.0,62928.0,0.007]
[1719845302742,0.00084,62929.0,62928.0,0.185911]
[1719845303236,0.00084,62929.0,62928.0,0.007]
[1719845303438,0.00084,62929.0,62928.0,0.004]
[1719845303664,0.00084,62929.0,62918.0,0.02]
[1719845303793,0.00084,62929.0,62917.0,0.203854]
[1719845303794,0.00084,62929.0,62928.0,0.001]
[1719845304401,0.00084,62929.0,62928.0,0.00417774]
[1719845305024,0.00084,62929.0,62928.0,0.001]
[1719845305437,0.00084,62929.0,62928.0,0.003]
[1719845305823,0.00084,62929.0,62928.0,0.001]
[1719845306261,0.08084,62929.0,62920.0,0.158831]
[1719845306465,0.07784,62929.0,62920.0,0.158831]
[1719845306670,0.08584,62929.0,62920.0,0.158831]
[1719845306879,0.09384,62929.0,62928.0,0.001]
[1719845307140,0.09384,62929.0,62920.0,0.158831]
[1719845307141,0.33146298,62929.0,62920.0,0.158831]
[1719845307347,0.33146298,62929.0,62900.0,0.67591475]
[1719845307348,0.07934304,62922.0,62910.0,0.630431]
[1719845307593,0.0788,62920.0,62910.0,0.64764923]
[1719845308034,0.00718912,62919.0,62910.0,0.64764923]
[1719845308584,0.0788,62920.0,62910.0,0.64764923]
[1719845309382,0.00718912,62919.0,62910.0,0.64764923]
[1719845309583,0.00718912,62919.0,62910.0,0.17604923]
[1719845309784,0.00718912,62919.0,62900.0,0.79387575]
[1719845309785,0.07934304,62915.0,62903.0,0.158831]
[1719845310216,0.00717285,62914.0,62904.0,0.02317891]
[1719845310590,0.24113898,62920.0,62904.0,0.02]
[1719845310795,0.00717451,62913.0,62903.0,0.158831]
[1719845311003,0.01,62919.0,62903.0,0.158831]
[1719845311213,0.00717207,62912.0,62903.0,0.158831]
[1719845311418,0.0663,62911.0,62903.0,0.158831]
[1719845311611,0.0796,62910.0,62903.0,0.158831]
[1719845311835,0.08676618,62910.0,62903.0,0.158831]
[1719845312450,0.07934304,62906.0,62891.0,0.224031]
[1719845312650,0.1426,62898.0,62889.0,0.7854]
[1719845312856,0.1426,62898.0,62888.0,0.000924]
[1719845313051,0.00769813,62897.0,62888.0,0.000924]
[1719845313214,0.1426,62898.0,62888.0,0.000924]
[1719845314018,0.1426,62898.0,62890.0,0.02]
[1719845314286,0.1426,62898.0,62888.0,0.000924]
[1719845314287,0.1426,62898.0,62891.0,0.00317972]
[1719845314665,0.00769641,62897.0,62888.0,0.00410373]
[1719845314902,0.00769641,62897.0,62890.0,0.02]
[1719845315071,0.00769641,62897.0,62892.0,0.02]
[1719845315316,0.1371,62907.0,62893.0,0.00317951]
[1719845315728,0.012,62898.0,62893.0,0.00317951]
[1719845316610,0.09934304,62906.0,62888.0,0.000924]
[1719845316832,0.013,62898.0,62888.0,0.000924]
[1719845317028,0.0642,62896.0,62888.0,0.000924]
[1719845317538,0.00768176,62895.0,62888.0,0.000924]
[1719845319018,0.02168176,62895.0,62888.0,0.000924]
[1719845319851,0.02168176,62895.0,62888.0,0.00410392]
[1719845320352,0.02168176,62895.0,62890.0,0.0631]
[1719845320353,0.014,62895.0,62890.0,0.0631]
[1719845320553,0.014,62895.0,62888.0,0.000924]
[1719845320756,0.00758523,62894.0,62888.0,0.000924]
[1719845321107,0.014,62895.0,62888.0,0.000924]
[1719845321316,0.028,62895.0,62888.0,0.000924]
[1719845321627,0.082,62893.0,62888.0,0.000924]
[1719845321829,0.308,62893.0,62888.0,0.000924]
[1719845322059,0.00795896,62892.0,62888.0,0.000924]
[1719845322809,0.23395896,62892.0,62888.0,0.000924]
[1719845323040,0.02,62890.0,62888.0,0.000924]
[1719845323216,0.02,62889.0,62888.0,0.000924]